[Event "Rapid Tournament (RAP)"]
[Site "Biel, Switzerland"]
[Date "2026.07.12"]
[Round "8.10"]
[White "Gluckman, David"]
[Black "Shukhman, Anna"]
[Result "0-1"]
[TimeControl "15 + 5"]
[WhiteTitle "-"]
[BlackTitle "-"]
[WhiteFideId "14300010"]
[BlackFideId "54180058"]
[WhiteElo "2161"]
[BlackElo "2272"]

1. e4 {[%clk 00:15:08]} {[%emt 00:00:02]} c5 {[%clk 00:15:09]} {[%emt
00:00:01]} 2. Nf3 {[%clk 00:15:08]} {[%emt 00:00:05]} d6 {[%clk 00:15:12]}
{[%emt 00:00:01]} 3. Bb5+ {[%clk 00:15:12]} {[%emt 00:00:02]} Bd7 {[%clk
00:15:16]} {[%emt 00:00:02]} 4. a4 {[%clk 00:15:16]} {[%emt 00:00:01]} Nc6
{[%clk 00:14:46]} {[%emt 00:00:35]} 5. O-O {[%clk 00:15:15]} {[%emt 00:00:05]}
g6 {[%clk 00:14:37]} {[%emt 00:00:14]} 6. Re1 {[%clk 00:15:15]} {[%emt
00:00:05]} Bg7 {[%clk 00:14:36]} {[%emt 00:00:05]} 7. c3 {[%clk 00:15:15]}
{[%emt 00:00:05]} Nf6 {[%clk 00:13:51]} {[%emt 00:00:49]} 8. h3 {[%clk
00:15:17]} {[%emt 00:00:04]} Ne5 {[%clk 00:13:12]} {[%emt 00:00:45]} 9. Bf1
{[%clk 00:14:18]} {[%emt 00:01:03]} Bc6 {[%clk 00:12:07]} {[%emt 00:01:11]} 10.
d3 {[%clk 00:12:00]} {[%emt 00:02:23]} O-O {[%clk 00:11:51]} {[%emt 00:00:20]}
11. Nbd2 {[%clk 00:11:41]} {[%emt 00:00:24]} Rc8 {[%clk 00:10:48]} {[%emt
00:01:08]} 12. d4 {[%clk 00:10:28]} {[%emt 00:01:18]} Nxf3+ {[%emt 00:00:23]}
13. Qxf3 {[%clk 00:10:21]} {[%emt 00:00:07]} cxd4 {[%clk 00:08:15]} {[%emt
00:02:25]} 14. cxd4 {[%clk 00:10:24]} {[%emt 00:00:02]} Qa5 {[%clk 00:06:30]}
{[%emt 00:01:50]} 15. d5 {[%clk 00:10:01]} {[%emt 00:00:28]} Be8 {[%clk
00:06:10]} {[%emt 00:00:24]} 16. Qe3 {[%clk 00:09:50]} {[%emt 00:00:16]} Nd7
{[%clk 00:05:58]} {[%emt 00:00:17]} 17. Nc4 {[%clk 00:09:48]} {[%emt 00:00:07]}
Qc5 {[%clk 00:05:39]} {[%emt 00:00:25]} 18. Qe2 {[%clk 00:07:30]} {[%emt
00:02:24]} Nb6 {[%clk 00:04:47]} {[%emt 00:00:56]} 19. Nxb6 {[%clk 00:07:24]}
{[%emt 00:00:11]} Qxb6 {[%clk 00:04:50]} {[%emt 00:00:02]} 20. a5 {[%clk
00:06:55]} {[%emt 00:00:34]} Qb4 {[%clk 00:04:27]} {[%emt 00:00:28]} 21. Bg5
{[%clk 00:06:39]} {[%emt 00:00:21]} Rc7 {[%clk 00:03:52]} {[%emt 00:00:40]} 22.
Rec1 {[%clk 00:06:28]} {[%emt 00:00:16]} Rxc1 {[%clk 00:01:46]} {[%emt
00:02:11]} 23. Rxc1 {[%clk 00:06:28]} {[%emt 00:00:05]} f6 {[%clk 00:01:50]}
{[%emt 00:00:01]} 24. Be3 {[%clk 00:05:34]} {[%emt 00:00:58]} Qxa5 {[%clk
00:01:05]} {[%emt 00:00:51]} 25. Qc4 {[%clk 00:05:32]} {[%emt 00:00:07]} f5
{[%clk 00:00:30]} {[%emt 00:00:40]} 26. Qc7 {[%clk 00:05:20]} {[%emt 00:00:18]}
Qxc7 {[%clk 00:00:24]} {[%emt 00:00:11]} 27. Rxc7 {[%clk 00:05:24]} {[%emt
00:00:01]} Bxb2 {[%clk 00:00:15]} {[%emt 00:00:13]} 28. Rxb7 {[%clk 00:05:18]}
{[%emt 00:00:11]} Bf6 {[%clk 00:00:15]} {[%emt 00:00:05]} 29. exf5 {[%clk
00:05:21]} {[%emt 00:00:03]} Bf7 {[%clk 00:00:13]} {[%emt 00:00:07]} 30. fxg6
{[%clk 00:05:21]} {[%emt 00:00:04]} hxg6 {[%clk 00:00:10]} {[%emt 00:00:08]} 31.
Rxa7 {[%clk 00:05:01]} {[%emt 00:00:25]} Bxd5 {[%clk 00:00:13]} {[%emt
00:00:03]} 32. Rc7 {[%clk 00:04:14]} {[%emt 00:00:51]} Rb8 {[%clk 00:00:14]}
{[%emt 00:00:04]} 33. Bc4 {[%clk 00:04:10]} {[%emt 00:00:09]} Rb1+ {[%clk
00:00:15]} {[%emt 00:00:04]} 34. Kh2 {[%clk 00:04:14]} Be5+ {[%clk 00:00:19]}
{[%emt 00:00:01]} 35. f4 {[%clk 00:04:19]} Bxc4 {[%clk 00:00:18]} {[%emt
00:00:06]} 36. fxe5 {[%clk 00:04:14]} {[%emt 00:00:10]} Bd5 {[%clk 00:00:21]}
{[%emt 00:00:03]} 37. exd6 {[%clk 00:04:03]} {[%emt 00:00:15]} exd6 {[%clk
00:00:25]} {[%emt 00:00:01]} 38. Rc2 {[%clk 00:04:05]} {[%emt 00:00:03]} Be4
{[%clk 00:00:17]} {[%emt 00:00:13]} 39. Rd2 {[%clk 00:04:09]} d5 {[%clk
00:00:22]} 40. Bd4 {[%clk 00:04:10]} {[%emt 00:00:04]} Kf7 {[%clk 00:00:24]}
{[%emt 00:00:02]} 41. Kg3 {[%clk 00:04:14]} {[%emt 00:00:01]} Ke6 {[%clk
00:00:28]} {[%emt 00:00:02]} 42. h4 {[%clk 00:04:11]} {[%emt 00:00:08]} Rb3+
{[%clk 00:00:27]} {[%emt 00:00:05]} 43. Kf2 {[%clk 00:04:10]} {[%emt 00:00:05]}
Kf5 {[%clk 00:00:28]} {[%emt 00:00:05]} 44. Be3 {[%clk 00:03:59]} {[%emt
00:00:16]} Kg4 {[%clk 00:00:30]} {[%emt 00:00:03]} 45. Bg5 {[%clk 00:04:00]}
{[%emt 00:00:04]} Rg3 {[%clk 00:00:17]} {[%emt 00:00:18]} 46. Kf1 {[%clk
00:04:04]} {[%emt 00:00:01]} Ra3 {[%clk 00:00:15]} {[%emt 00:00:07]} 47. Kf2
{[%clk 00:04:03]} {[%emt 00:00:06]} Ra7 {[%clk 00:00:17]} {[%emt 00:00:04]} 48.
g3 {[%clk 00:03:55]} {[%emt 00:00:12]} Ra3 {[%clk 00:00:14]} {[%emt 00:00:08]}
49. Bf4 {[%clk 00:03:58]} {[%emt 00:00:03]} Rf3+ {[%clk 00:00:14]} {[%emt
00:00:04]} 50. Ke2 {[%clk 00:04:00]} {[%emt 00:00:02]} Kh3 {[%clk 00:00:15]}
{[%emt 00:00:05]} 51. Ke1 {[%clk 00:03:50]} {[%emt 00:00:14]} Rb3 {[%clk
00:00:11]} {[%emt 00:00:10]} 52. Rd1 {[%clk 00:03:42]} {[%emt 00:00:13]} Rb4
{[%clk 00:00:09]} {[%emt 00:00:08]} 53. Kf2 {[%clk 00:03:42]} {[%emt 00:00:05]}
d4 {[%clk 00:00:08]} {[%emt 00:00:06]} 54. Rd2 {[%clk 00:03:39]} {[%emt
00:00:07]} Kg4 {[%clk 00:00:10]} {[%emt 00:00:03]} 55. Be5 {[%clk 00:03:42]}
{[%emt 00:00:02]} d3 {[%clk 00:00:13]} {[%emt 00:00:01]} 56. Ke3 {[%clk
00:03:44]} {[%emt 00:00:04]} Bf5 {[%clk 00:00:17]} 57. Bf4 {[%clk 00:03:47]}
{[%emt 00:00:01]} Rb1 {[%clk 00:00:19]} {[%emt 00:00:04]} 58. Kd4 {[%clk
00:03:43]} {[%emt 00:00:09]} Re1 {[%clk 00:00:20]} {[%emt 00:00:04]} 59. Rf2
{[%clk 00:03:28]} {[%emt 00:00:20]} Re8 {[%clk 00:00:09]} {[%emt 00:00:16]} 60.
Bd6 {[%clk 00:03:07]} {[%emt 00:00:26]} Rd8 {[%clk 00:00:08]} {[%emt 00:00:07]}
61. Ke5 {[%clk 00:03:04]} {[%emt 00:00:07]} Kxg3 {[%clk 00:00:11]} {[%emt
00:00:01]} 62. Rd2 {[%clk 00:02:55]} {[%emt 00:00:15]} Re8+ {[%clk 00:00:11]}
{[%emt 00:00:05]} 63. Kf6+ {[%clk 00:02:56]} {[%emt 00:00:04]} Kxh4 {[%clk
00:00:13]} {[%emt 00:00:03]} 64. Bf4 {[%clk 00:03:00]} {[%emt 00:00:01]} Re6+
{[%clk 00:00:15]} {[%emt 00:00:03]} 65. Kf7 {[%clk 00:03:03]} {[%emt 00:00:02]}
Kg4 {[%clk 00:00:17]} {[%emt 00:00:03]} 66. Bh6 {[%clk 00:03:07]} {[%emt
00:00:01]} Ra6 {[%clk 00:00:20]} {[%emt 00:00:02]} 67. Rg2+ {[%clk 00:03:03]}
{[%emt 00:00:09]} Kf3 {[%clk 00:00:24]} {[%emt 00:00:02]} 68. Rh2 {[%clk
00:03:08]} Re6 {[%clk 00:00:16]} {[%emt 00:00:13]} 69. Bg5 {[%clk 00:03:09]}
{[%emt 00:00:04]} Re2 {[%clk 00:00:18]} {[%emt 00:00:02]} 70. Rh3+ {[%clk
00:03:12]} {[%emt 00:00:03]} Kg4 {[%clk 00:00:21]} {[%emt 00:00:02]} 0-1

[Event "Rapid Tournament (RAP)"]
[Site "Biel, Switzerland"]
[Date "2026.07.12"]
[Round "8.11"]
[White "Dong, Hongfu"]
[Black "Erne, Raphael"]
[Result "1-0"]
[TimeControl "15 + 5"]
[WhiteTitle "-"]
[BlackTitle "-"]
[WhiteFideId "8626960"]
[BlackFideId "1341928"]
[WhiteElo "2271"]
[BlackElo "2122"]

1. e4 {[%clk 00:15:06]} {[%emt 00:00:02]} c6 {[%clk 00:15:06]} {[%emt
00:00:05]} 2. d4 {[%clk 00:15:09]} {[%emt 00:00:03]} d5 {[%clk 00:15:08]}
{[%emt 00:00:03]} 3. e5 {[%clk 00:15:13]} {[%emt 00:00:01]} c5 {[%clk
00:15:10]} {[%emt 00:00:03]} 4. Nf3 {[%clk 00:15:14]} {[%emt 00:00:04]} cxd4
{[%clk 00:15:12]} {[%emt 00:00:03]} 5. Nxd4 {[%clk 00:15:18]} {[%emt 00:00:01]}
Nc6 {[%clk 00:15:13]} {[%emt 00:00:03]} 6. Nxc6 {[%clk 00:15:21]} {[%emt
00:00:02]} bxc6 {[%clk 00:15:16]} {[%emt 00:00:02]} 7. Bd3 {[%clk 00:15:25]}
{[%emt 00:00:01]} e6 {[%clk 00:15:16]} {[%emt 00:00:05]} 8. O-O {[%clk
00:15:28]} {[%emt 00:00:02]} Ne7 {[%clk 00:15:16]} {[%emt 00:00:04]} 9. Nd2
{[%clk 00:15:32]} {[%emt 00:00:02]} a5 {[%clk 00:15:10]} {[%emt 00:00:11]} 10.
Qe2 {[%clk 00:15:25]} {[%emt 00:00:12]} Ng6 {[%clk 00:14:29]} {[%emt 00:00:46]}
11. Nf3 {[%clk 00:15:29]} {[%emt 00:00:01]} Be7 {[%clk 00:13:16]} {[%emt
00:01:18]} 12. g3 {[%clk 00:15:32]} {[%emt 00:00:02]} O-O {[%clk 00:12:26]}
{[%emt 00:00:54]} 13. h4 {[%clk 00:15:35]} {[%emt 00:00:02]} Re8 {[%clk
00:10:23]} {[%emt 00:02:09]} 14. h5 {[%clk 00:15:02]} {[%emt 00:00:38]} Nf8
{[%clk 00:10:24]} {[%emt 00:00:03]} 15. Bf4 {[%clk 00:14:48]} {[%emt 00:00:19]}
Qb6 {[%clk 00:09:55]} {[%emt 00:00:35]} 16. c4 {[%clk 00:14:51]} {[%emt
00:00:02]} Ba6 {[%clk 00:09:33]} {[%emt 00:00:27]} 17. Rfc1 {[%clk 00:14:39]}
{[%emt 00:00:17]} Rab8 {[%clk 00:07:59]} {[%emt 00:01:39]} 18. Rc2 {[%clk
00:14:43]} {[%emt 00:00:02]} Red8 {[%clk 00:06:39]} {[%emt 00:01:25]} 19. h6
{[%clk 00:14:39]} {[%emt 00:00:08]} Ng6 {[%clk 00:05:51]} {[%emt 00:00:54]} 20.
Be3 {[%clk 00:14:43]} {[%emt 00:00:01]} Qb7 {[%clk 00:04:27]} {[%emt 00:01:28]}
21. hxg7 {[%clk 00:14:45]} {[%emt 00:00:03]} Kxg7 {[%clk 00:04:20]} {[%emt
00:00:12]} 22. Ng5 {[%clk 00:14:16]} {[%emt 00:00:33]} Rh8 {[%clk 00:00:50]}
{[%emt 00:03:36]} 23. Qh5 {[%clk 00:13:15]} {[%emt 00:01:06]} Rbf8 {[%clk
00:00:10]} {[%emt 00:00:45]} 24. Re1 {[%clk 00:11:49]} {[%emt 00:01:31]} Bxc4
{[%clk 00:00:08]} {[%emt 00:00:08]} 25. Bxc4 {[%clk 00:11:35]} {[%emt
00:00:19]} dxc4 {[%clk 00:00:12]} 26. Ne4 {[%clk 00:11:39]} {[%emt 00:00:01]}
h6 {[%clk 00:00:08]} {[%emt 00:00:09]} 27. Nf6 {[%clk 00:11:25]} {[%emt
00:00:18]} Qb5 {[%clk 00:00:11]} {[%emt 00:00:02]} 28. Ng4 {[%clk 00:11:24]}
{[%emt 00:00:06]} Bg5 {[%clk 00:00:07]} {[%emt 00:00:09]} 29. Bxg5 {[%clk
00:11:17]} {[%emt 00:00:12]} hxg5 {[%clk 00:00:11]} {[%emt 00:00:01]} 30. Qxg5
{[%clk 00:11:22]} {[%emt 00:00:01]} Qd5 {[%clk 00:00:11]} {[%emt 00:00:05]} 31.
Qf6+ {[%clk 00:11:06]} {[%emt 00:00:20]} Kg8 {[%clk 00:00:12]} {[%emt
00:00:04]} 32. f3 {[%clk 00:11:09]} {[%emt 00:00:03]} Qd3 {[%clk 00:00:06]}
{[%emt 00:00:11]} 33. Rf2 {[%clk 00:11:08]} {[%emt 00:00:05]} c3 {[%clk
00:00:08]} {[%emt 00:00:04]} 34. bxc3 {[%clk 00:11:04]} {[%emt 00:00:08]} Qxc3
{[%clk 00:00:12]} 35. Rd1 {[%clk 00:11:09]} Rb8 {[%clk 00:00:12]} {[%emt
00:00:06]} 36. Rfd2 {[%clk 00:11:03]} {[%emt 00:00:10]} Qc5+ {[%clk 00:00:13]}
{[%emt 00:00:05]} 37. Kg2 {[%clk 00:11:07]} {[%emt 00:00:01]} Rf8 {[%clk
00:00:06]} {[%emt 00:00:12]} 38. Rd8 {[%clk 00:11:03]} {[%emt 00:00:07]} Qc2+
{[%clk 00:00:08]} {[%emt 00:00:04]} 39. R1d2 {[%clk 00:11:07]} Qc5 {[%clk
00:00:12]} 40. Rxf8+ {[%clk 00:11:11]} {[%emt 00:00:02]} Nxf8 {[%clk 00:00:11]}
{[%emt 00:00:06]} 41. Qg5+ {[%clk 00:11:05]} {[%emt 00:00:10]} Ng6 {[%clk
00:00:07]} {[%emt 00:00:09]} 42. Rd8+ {[%clk 00:11:08]} {[%emt 00:00:02]} Kh7
{[%clk 00:00:06]} {[%emt 00:00:06]} 43. Qh6# {[%clk 00:11:11]} {[%emt
00:00:02]} 1-0

[Event "Rapid Tournament (RAP)"]
[Site "Biel, Switzerland"]
[Date "2026.07.12"]
[Round "8.12"]
[White "Harish, Neeraj"]
[Black "Manko, Mariia"]
[Result "0-1"]
[TimeControl "15 + 5"]
[WhiteTitle "-"]
[BlackTitle "-"]
[WhiteFideId "30958130"]
[BlackFideId "14199220"]
[WhiteElo "2140"]
[BlackElo "2210"]

1. e4 {[%clk 00:15:08]} c5 {[%clk 00:15:09]} {[%emt 00:00:01]} 2. d4 {[%clk
00:15:10]} {[%emt 00:00:06]} cxd4 {[%clk 00:15:13]} 3. Qxd4 {[%clk 00:15:13]}
{[%emt 00:00:02]} Nc6 {[%clk 00:15:17]} {[%emt 00:00:01]} 4. Qd3 {[%clk
00:15:17]} {[%emt 00:00:01]} Nf6 {[%clk 00:15:18]} {[%emt 00:00:04]} 5. Nc3
{[%clk 00:15:21]} e6 {[%clk 00:15:14]} {[%emt 00:00:09]} 6. Bf4 {[%clk
00:15:22]} {[%emt 00:00:03]} a6 {[%clk 00:15:15]} {[%emt 00:00:05]} 7. O-O-O
{[%clk 00:15:14]} {[%emt 00:00:12]} b5 {[%clk 00:14:59]} {[%emt 00:00:22]} 8.
Nf3 {[%clk 00:14:26]} {[%emt 00:00:52]} b4 {[%clk 00:14:15]} {[%emt 00:00:49]}
9. Nd5 {[%clk 00:14:20]} {[%emt 00:00:12]} exd5 {[%clk 00:12:47]} {[%emt
00:01:33]} 10. exd5 {[%clk 00:14:23]} {[%emt 00:00:02]} Be7 {[%clk 00:12:14]}
{[%emt 00:00:38]} 11. dxc6 {[%clk 00:11:16]} {[%emt 00:03:12]} dxc6 {[%clk
00:10:27]} {[%emt 00:01:51]} 12. Nd4 {[%clk 00:11:03]} {[%emt 00:00:18]} Bb7
{[%clk 00:09:01]} {[%emt 00:01:32]} 13. Qh3 {[%clk 00:09:42]} {[%emt 00:01:25]}
Nd5 {[%clk 00:07:37]} {[%emt 00:01:29]} 14. Nf5 {[%clk 00:08:38]} {[%emt
00:01:09]} O-O {[%clk 00:06:35]} {[%emt 00:01:07]} 15. Bd3 {[%clk 00:07:27]}
{[%emt 00:01:16]} g6 {[%clk 00:05:26]} {[%emt 00:01:14]} 16. Nxe7+ {[%clk
00:05:37]} {[%emt 00:01:55]} Qxe7 {[%clk 00:05:26]} {[%emt 00:00:06]} 17. Bh6
{[%clk 00:05:37]} {[%emt 00:00:05]} Rfe8 {[%clk 00:04:46]} {[%emt 00:00:45]} 18.
Qg4 {[%clk 00:04:46]} {[%emt 00:00:55]} Qf6 {[%clk 00:04:35]} {[%emt 00:00:17]}
19. h4 {[%clk 00:04:12]} {[%emt 00:00:39]} Bc8 {[%clk 00:03:33]} {[%emt
00:01:06]} 20. Qg3 {[%clk 00:03:36]} {[%emt 00:00:41]} Bf5 {[%clk 00:03:36]}
{[%emt 00:00:02]} 21. h5 {[%clk 00:02:29]} {[%emt 00:01:13]} Bxd3 {[%clk
00:02:55]} {[%emt 00:00:45]} 22. Rxd3 {[%clk 00:02:30]} {[%emt 00:00:04]} Re2
{[%clk 00:02:44]} {[%emt 00:00:16]} 23. hxg6 {[%clk 00:02:15]} {[%emt
00:00:20]} fxg6 {[%clk 00:02:36]} {[%emt 00:00:13]} 24. Rf3 {[%clk 00:00:53]}
{[%emt 00:01:28]} Qe7 {[%clk 00:02:17]} {[%emt 00:00:23]} 25. Qg4 {[%clk
00:00:30]} {[%emt 00:00:28]} Re1+ {[%clk 00:02:12]} {[%emt 00:00:10]} 26. Kd2
{[%clk 00:00:25]} {[%emt 00:00:11]} Qe2# {[%clk 00:02:16]} {[%emt 00:00:01]}
0-1

[Event "Rapid Tournament (RAP)"]
[Site "Biel, Switzerland"]
[Date "2026.07.12"]
[Round "8.13"]
[White "Frey, Fabian"]
[Black "Fogo Esquivel, Levi Kalani Alexander"]
[Result "0-1"]
[TimeControl "15 + 5"]
[WhiteTitle "-"]
[BlackTitle "-"]
[WhiteFideId "1336487"]
[BlackFideId "5183189"]
[WhiteElo "2207"]
[BlackElo "2088"]

1. d4 {[%clk 00:15:07]} {[%emt 00:00:02]} Nf6 {[%clk 00:15:09]} {[%emt
00:00:01]} 2. Bg5 {[%clk 00:15:11]} {[%emt 00:00:01]} c5 {[%clk 00:14:28]}
{[%emt 00:00:47]} 3. d5 {[%clk 00:14:53]} {[%emt 00:00:22]} d6 {[%clk
00:14:31]} {[%emt 00:00:03]} 4. Nc3 {[%clk 00:14:50]} {[%emt 00:00:07]} g6
{[%clk 00:14:35]} {[%emt 00:00:01]} 5. e4 {[%clk 00:14:39]} {[%emt 00:00:16]}
Bg7 {[%clk 00:14:38]} {[%emt 00:00:02]} 6. Bb5+ {[%clk 00:14:39]} {[%emt
00:00:05]} Nbd7 {[%clk 00:14:39]} {[%emt 00:00:05]} 7. a4 {[%clk 00:14:40]}
{[%emt 00:00:03]} Qa5 {[%clk 00:14:35]} {[%emt 00:00:08]} 8. Bd2 {[%clk
00:14:24]} {[%emt 00:00:21]} a6 {[%clk 00:14:25]} {[%emt 00:00:17]} 9. Be2
{[%clk 00:14:03]} {[%emt 00:00:24]} O-O {[%clk 00:14:14]} {[%emt 00:00:17]} 10.
Nf3 {[%clk 00:14:06]} Rb8 {[%clk 00:13:57]} {[%emt 00:00:24]} 11. O-O {[%clk
00:14:05]} {[%emt 00:00:06]} Qc7 {[%clk 00:13:57]} {[%emt 00:00:05]} 12. h3
{[%clk 00:14:05]} {[%emt 00:00:05]} c4 {[%clk 00:12:52]} {[%emt 00:01:10]} 13.
Be3 {[%clk 00:13:48]} {[%emt 00:00:21]} Nc5 {[%clk 00:12:45]} {[%emt 00:00:12]}
14. Bxc5 {[%clk 00:12:47]} {[%emt 00:01:07]} Qxc5 {[%clk 00:12:47]} {[%emt
00:00:03]} 15. a5 {[%clk 00:12:48]} {[%emt 00:00:03]} Bd7 {[%clk 00:12:38]}
{[%emt 00:00:14]} 16. Qd2 {[%clk 00:12:23]} {[%emt 00:00:30]} b5 {[%clk
00:12:28]} {[%emt 00:00:16]} 17. axb6 {[%clk 00:11:40]} {[%emt 00:00:48]} Rxb6
{[%clk 00:12:32]} 18. e5 {[%clk 00:11:05]} {[%emt 00:00:39]} dxe5 {[%clk
00:12:07]} {[%emt 00:00:30]} 19. Nxe5 {[%clk 00:11:07]} {[%emt 00:00:03]} Rxb2
{[%clk 00:10:10]} {[%emt 00:02:02]} 20. Nxd7 {[%clk 00:09:19]} {[%emt
00:01:53]} Nxd7 {[%clk 00:10:14]} {[%emt 00:00:02]} 21. Na4 {[%clk 00:09:23]}
Qb4 {[%clk 00:10:15]} {[%emt 00:00:04]} 22. Qd1 {[%clk 00:08:44]} {[%emt
00:00:44]} c3 {[%clk 00:09:52]} {[%emt 00:00:27]} 23. Nxb2 {[%clk 00:08:19]}
{[%emt 00:00:30]} cxb2 {[%clk 00:09:52]} {[%emt 00:00:05]} 24. Rxa6 {[%clk
00:07:19]} {[%emt 00:01:06]} Nc5 {[%clk 00:09:49]} {[%emt 00:00:08]} 25. c3
{[%clk 00:06:45]} {[%emt 00:00:39]} Qxc3 {[%clk 00:09:27]} {[%emt 00:00:27]} 26.
Rc6 {[%clk 00:05:53]} {[%emt 00:00:57]} Rb8 {[%clk 00:07:36]} {[%emt 00:01:56]}
27. Qb1 {[%clk 00:02:58]} {[%emt 00:02:59]} Qb4 {[%clk 00:06:28]} {[%emt
00:01:13]} 28. Rd1 {[%clk 00:02:57]} {[%emt 00:00:07]} Na4 {[%clk 00:06:20]}
{[%emt 00:00:12]} 29. Bd3 {[%clk 00:01:15]} {[%emt 00:01:47]} Nc3 {[%clk
00:06:18]} {[%emt 00:00:07]} 30. Rxc3 {[%clk 00:01:18]} {[%emt 00:00:02]} Qxc3
{[%clk 00:06:21]} {[%emt 00:00:02]} 31. Qc2 {[%clk 00:01:19]} {[%emt 00:00:03]}
Qxc2 {[%clk 00:05:15]} {[%emt 00:01:12]} 32. Bxc2 {[%clk 00:01:23]} {[%emt
00:00:01]} Rc8 {[%clk 00:05:20]} 33. Bb1 {[%clk 00:01:27]} {[%emt 00:00:01]}
Rc1 {[%clk 00:05:24]} {[%emt 00:00:01]} 34. Rf1 {[%clk 00:01:31]} Bc3 {[%clk
00:05:28]} 35. g4 {[%clk 00:00:57]} {[%emt 00:00:38]} Be1 {[%clk 00:05:32]} 36.
Bd3 {[%clk 00:01:01]} {[%emt 00:00:02]} b1=Q {[%clk 00:05:35]} {[%emt
00:00:02]} 37. Bxb1 {[%clk 00:01:04]} {[%emt 00:00:02]} Rxb1 {[%clk 00:05:39]}
38. Kg2 {[%clk 00:01:07]} {[%emt 00:00:01]} Ra1 {[%clk 00:05:43]} 39. f4 {[%clk
00:00:59]} {[%emt 00:00:13]} Ra2+ {[%clk 00:05:39]} {[%emt 00:00:10]} 40. Kf3
{[%clk 00:00:53]} {[%emt 00:00:08]} Bb4 {[%clk 00:05:42]} {[%emt 00:00:04]} 41.
Rc1 {[%clk 00:00:51]} {[%emt 00:00:07]} Bd6 {[%clk 00:05:43]} {[%emt 00:00:04]}
42. Rc4 {[%clk 00:00:53]} {[%emt 00:00:03]} Kg7 {[%clk 00:05:46]} {[%emt
00:00:02]} 43. h4 {[%clk 00:00:48]} {[%emt 00:00:09]} h6 {[%clk 00:05:44]}
{[%emt 00:00:06]} 44. Rd4 {[%clk 00:00:48]} {[%emt 00:00:07]} Ra1 {[%clk
00:05:35]} {[%emt 00:00:14]} 45. g5 {[%clk 00:00:45]} {[%emt 00:00:08]} hxg5
{[%clk 00:05:34]} {[%emt 00:00:06]} 46. hxg5 {[%clk 00:00:47]} {[%emt
00:00:03]} f6 {[%clk 00:05:39]} {[%emt 00:00:01]} 47. Kg4 {[%clk 00:00:34]}
{[%emt 00:00:18]} Rg1+ {[%clk 00:05:40]} {[%emt 00:00:03]} 48. Kh4 {[%clk
00:00:38]} {[%emt 00:00:02]} Bxf4 {[%clk 00:05:44]} {[%emt 00:00:01]} 0-1